[Event "*** Titled Tuesday Blitz"]
[Site "Chess.com"]
[Date "2020.05.12"]
[Round "7"]
[White "ManuDavid2910"]
[Black "AttilaTurzo"]
[Result "0-1"]
[WhiteElo "2684"]
[BlackElo "2492"]
[TimeControl "180+1"]
[EndTime "11:18:05 PDT"]
[Termination "AttilaTurzo won by resignation"]

1. e4 {[%clk 0:03:00.9]} 1... c5 {[%clk 0:02:59.5]} 2. Nf3 {[%clk 0:03:01.1]}
2... Nc6 {[%clk 0:02:58.9]} 3. d4 {[%clk 0:03:01]} 3... cxd4 {[%clk 0:02:59.8]}
4. Nxd4 {[%clk 0:03:01.9]} 4... Nf6 {[%clk 0:02:59.1]} 5. Nc3 {[%clk 0:03:02.2]}
5... d6 {[%clk 0:02:59.4]} 6. Be2 {[%clk 0:03:01.6]} 6... g6 {[%clk 0:02:58.6]}
7. O-O {[%clk 0:03:02]} 7... Bg7 {[%clk 0:02:59]} 8. Be3 {[%clk 0:03:02.6]} 8...
O-O {[%clk 0:02:59.5]} 9. Kh1 {[%clk 0:03:03.1]} 9... Bd7 {[%clk 0:02:51.1]} 10.
f4 {[%clk 0:03:02.7]} 10... a6 {[%clk 0:02:27.9]} 11. Bf3 {[%clk 0:03:01.8]}
11... e5 {[%clk 0:02:25.4]} 12. Nb3 {[%clk 0:03:00.1]} 12... exf4 {[%clk
0:02:16]} 13. Bxf4 {[%clk 0:03:01]} 13... Ne5 {[%clk 0:02:16.5]} 14. Qxd6 {[%clk
0:02:58.8]} 14... Nc4 {[%clk 0:02:16.8]} 15. Qb4 {[%clk 0:02:36.1]} 15... Rc8
{[%clk 0:01:58.4]} 16. Qxb7 {[%clk 0:01:48.4]} 16... Bc6 {[%clk 0:01:53.3]} 17.
Qxa6 {[%clk 0:01:46.1]} 17... Nxb2 {[%clk 0:01:49.8]} 18. Rae1 {[%clk
0:01:15.8]} 18... Nh5 {[%clk 0:01:43.8]} 19. Bxh5 {[%clk 0:01:05.8]} 19... Bxc3
{[%clk 0:01:42.3]} 20. Re3 {[%clk 0:01:02.3]} 20... Bg7 {[%clk 0:01:33.1]} 21.
Bf3 {[%clk 0:00:56.3]} 21... Ba8 {[%clk 0:01:32.1]} 22. Re2 {[%clk 0:00:52.4]}
22... Qh4 {[%clk 0:01:24.9]} 23. Bg3 {[%clk 0:00:48.4]} 23... Qg5 {[%clk
0:01:18.6]} 24. a4 {[%clk 0:00:46.1]} 24... Nc4 {[%clk 0:01:10.4]} 25. Qb5
{[%clk 0:00:44.9]} 25... Qe7 {[%clk 0:01:03.8]} 26. Rd1 {[%clk 0:00:38.3]} 26...
Ne5 {[%clk 0:00:57.9]} 27. a5 {[%clk 0:00:26.2]} 27... Bc6 {[%clk 0:00:52.1]}
28. Qb6 {[%clk 0:00:22.7]} 28... Nc4 {[%clk 0:00:46.7]} 29. Qf2 {[%clk
0:00:20.3]} 29... Bb5 {[%clk 0:00:44.2]} 30. Ree1 {[%clk 0:00:16.8]} 30... Ne5
{[%clk 0:00:40.7]} 31. Nd4 {[%clk 0:00:15.2]} 31... Bc4 {[%clk 0:00:37.6]} 32.
h3 {[%clk 0:00:14.5]} 32... h5 {[%clk 0:00:36.9]} 33. Bh4 {[%clk 0:00:13.4]}
33... Qb4 {[%clk 0:00:34.3]} 34. Qg3 {[%clk 0:00:13.4]} 34... Rfe8 {[%clk
0:00:33.7]} 35. Bg5 {[%clk 0:00:12.5]} 35... Qxa5 {[%clk 0:00:31.3]} 36. Bd2
{[%clk 0:00:12.5]} 36... Qb6 {[%clk 0:00:29.8]} 37. Bf4 {[%clk 0:00:12.8]} 37...
Rcd8 {[%clk 0:00:28.2]} 38. c3 {[%clk 0:00:12.5]} 38... Qc5 {[%clk 0:00:26.6]}
39. Bg5 {[%clk 0:00:12.7]} 39... Rc8 {[%clk 0:00:25.3]} 40. Be3 {[%clk
0:00:12.9]} 40... Qa3 {[%clk 0:00:21.7]} 41. Bc1 {[%clk 0:00:11.9]} 41... Qxc3
{[%clk 0:00:21]} 42. Re3 {[%clk 0:00:08.8]} 42... Nd3 {[%clk 0:00:20.2]} 43.
Bxh5 {[%clk 0:00:06]} 43... Qxd4 {[%clk 0:00:19]} 44. Be2 {[%clk 0:00:03.4]}
44... Rxe4 {[%clk 0:00:17.1]} 45. Bxd3 {[%clk 0:00:03.5]} 45... Rxe3 {[%clk
0:00:12.1]} 46. Bxe3 {[%clk 0:00:04.4]} 46... Qc3 {[%clk 0:00:10.8]} 47. Bxc4
{[%clk 0:00:04.2]} 47... Qxc4 {[%clk 0:00:11.7]} 48. Qf2 {[%clk 0:00:04.2]}
48... Qe6 {[%clk 0:00:11.6]} 49. Re1 {[%clk 0:00:04.5]} 49... Re8 {[%clk
0:00:11.7]} 50. Rf1 {[%clk 0:00:04.8]} 50... Qxe3 {[%clk 0:00:11.2]} 51. Qxf7+
{[%clk 0:00:05.1]} 51... Kh7 {[%clk 0:00:11.7]} 52. Qf3 {[%clk 0:00:05.6]} 52...
Qxf3 {[%clk 0:00:11.8]} 53. Rxf3 {[%clk 0:00:06.5]} 53... Kg8 {[%clk 0:00:12]}
54. g3 {[%clk 0:00:06.7]} 54... Rf8 {[%clk 0:00:12.4]} 55. Kg2 {[%clk
0:00:07.1]} 55... Rxf3 {[%clk 0:00:12.2]} 56. Kxf3 {[%clk 0:00:08]} 56... Kf7
{[%clk 0:00:12.8]} 57. Kg4 {[%clk 0:00:08.2]} 57... Kf6 {[%clk 0:00:13]} 58. h4
{[%clk 0:00:08.4]} 58... Bh6 {[%clk 0:00:13.5]} 59. Kf3 {[%clk 0:00:08.6]} 59...
Kf5 {[%clk 0:00:13]} 60. g4+ {[%clk 0:00:08.9]} 60... Ke5 {[%clk 0:00:13.1]} 61.
g5 {[%clk 0:00:08.8]} 61... Bxg5 {[%clk 0:00:12.5]} 62. hxg5 {[%clk 0:00:04.9]}
62... Kf5 {[%clk 0:00:12.8]} 63. Kg3 {[%clk 0:00:04.6]} 63... Kxg5 {[%clk
0:00:13]} 64. Kg2 {[%clk 0:00:04.7]} 64... Kg4 {[%clk 0:00:13.2]} 65. Kf2 {[%clk
0:00:05.1]} 65... Kh3 {[%clk 0:00:13.6]} 66. Kg1 {[%clk 0:00:04.9]} 66... g5
{[%clk 0:00:14.2]} 67. Kh1 {[%clk 0:00:04.7]} 67... g4 {[%clk 0:00:15.1]} 68.
Kg1 {[%clk 0:00:05]} 68... Kg3 {[%clk 0:00:14.2]} 69. Kf1 {[%clk 0:00:05]} 0-1

[Event "*** Titled Tuesday Blitz"]
[Site "Chess.com"]
[Date "2020.05.12"]
[Round "7"]
[White "Loiacono_Antonio"]
[Black "mirceaparligras"]
[Result "1/2-1/2"]
[WhiteElo "2414"]
[BlackElo "2573"]
[TimeControl "180+1"]
[EndTime "11:18:05 PDT"]
[Termination "Game drawn by repetition"]

1. e4 {[%clk 0:02:38.4]} 1... c5 {[%clk 0:03:00]} 2. Nf3 {[%clk 0:02:37.4]} 2...
d6 {[%clk 0:03:00]} 3. Bb5+ {[%clk 0:02:37.1]} 3... Nc6 {[%clk 0:02:59]} 4. O-O
{[%clk 0:02:36.8]} 4... Bd7 {[%clk 0:02:59]} 5. c3 {[%clk 0:02:37]} 5... Nf6
{[%clk 0:02:59.1]} 6. Re1 {[%clk 0:02:36.8]} 6... a6 {[%clk 0:02:59.2]} 7. Ba4
{[%clk 0:02:33]} 7... b5 {[%clk 0:02:55.4]} 8. Bc2 {[%clk 0:02:32.7]} 8... Bg4
{[%clk 0:02:55.1]} 9. h3 {[%clk 0:02:30.4]} 9... Bxf3 {[%clk 0:02:53.2]} 10.
Qxf3 {[%clk 0:02:30]} 10... g6 {[%clk 0:02:50.9]} 11. a4 {[%clk 0:02:25]} 11...
Rb8 {[%clk 0:02:47.1]} 12. axb5 {[%clk 0:02:20]} 12... axb5 {[%clk 0:02:48]} 13.
Na3 {[%clk 0:02:18]} 13... Bg7 {[%clk 0:02:45.3]} 14. Qe2 {[%clk 0:02:17.4]}
14... Qb6 {[%clk 0:02:25.5]} 15. d3 {[%clk 0:02:13]} 15... O-O {[%clk
0:02:24.6]} 16. Be3 {[%clk 0:02:12.4]} 16... b4 {[%clk 0:02:18.8]} 17. Nc4
{[%clk 0:02:11.6]} 17... Qc7 {[%clk 0:02:18.3]} 18. f4 {[%clk 0:02:04.8]} 18...
bxc3 {[%clk 0:02:11.2]} 19. bxc3 {[%clk 0:02:05.7]} 19... Nd7 {[%clk 0:02:04.9]}
20. Bd2 {[%clk 0:02:05]} 20... Nb6 {[%clk 0:02:01.9]} 21. Bb3 {[%clk 0:02:03.5]}
21... Nxc4 {[%clk 0:02:00.4]} 22. Bxc4 {[%clk 0:02:04.4]} 22... Na5 {[%clk
0:01:57.8]} 23. Ba2 {[%clk 0:01:59.6]} 23... Nb3 {[%clk 0:01:51.2]} 24. Rab1
{[%clk 0:01:58.3]} 24... Nxd2 {[%clk 0:01:49.1]} 25. Qxd2 {[%clk 0:01:59.2]}
25... Qa5 {[%clk 0:01:44.7]} 26. Rbc1 {[%clk 0:01:55.6]} 26... e6 {[%clk
0:01:40.5]} 27. e5 {[%clk 0:01:55]} 27... dxe5 {[%clk 0:01:38]} 28. fxe5 {[%clk
0:01:54.5]} 28... Rfd8 {[%clk 0:01:35.2]} 29. Bc4 {[%clk 0:01:54.3]} 29... Qc7
{[%clk 0:01:31.2]} 30. Qf4 {[%clk 0:01:51.9]} 30... Rb2 {[%clk 0:01:26.2]} 31.
Ra1 {[%clk 0:01:30.6]} 31... Rdb8 {[%clk 0:01:17]} 32. Ra2 {[%clk 0:01:23.3]}
32... Rxa2 {[%clk 0:01:11.4]} 33. Bxa2 {[%clk 0:01:24.2]} 33... Qa5 {[%clk
0:01:08.4]} 34. Bc4 {[%clk 0:01:22.5]} 34... Qxc3 {[%clk 0:01:07.2]} 35. Qe3
{[%clk 0:01:19.3]} 35... Rb2 {[%clk 0:01:01.1]} 36. Re2 {[%clk 0:01:13.1]} 36...
Rxe2 {[%clk 0:00:56.6]} 37. Qxe2 {[%clk 0:01:14]} 37... Bxe5 {[%clk 0:00:56.4]}
38. g4 {[%clk 0:01:06.8]} 38... Qc1+ {[%clk 0:00:54.1]} 39. Kg2 {[%clk
0:01:05.7]} 39... Qf4 {[%clk 0:00:53.8]} 40. Qf3 {[%clk 0:01:03.4]} 40... Qh2+
{[%clk 0:00:52]} 41. Kf1 {[%clk 0:01:03.5]} 41... Bd4 {[%clk 0:00:49.8]} 42.
Qa8+ {[%clk 0:00:55]} 42... Kg7 {[%clk 0:00:49.6]} 43. Qf3 {[%clk 0:00:55.9]}
43... Qg1+ {[%clk 0:00:46.2]} 44. Ke2 {[%clk 0:00:54.2]} 44... Bc3 {[%clk
0:00:46.7]} 45. Qf2 {[%clk 0:00:42.8]} 45... Qxf2+ {[%clk 0:00:43.8]} 46. Kxf2
{[%clk 0:00:43.7]} 46... Kf6 {[%clk 0:00:44]} 47. Kf3 {[%clk 0:00:42.7]} 47...
Ke5 {[%clk 0:00:44]} 48. Ke3 {[%clk 0:00:40.5]} 48... f5 {[%clk 0:00:43.9]} 49.
Bb5 {[%clk 0:00:37.4]} 49... Bd4+ {[%clk 0:00:42.8]} 50. Kf3 {[%clk 0:00:37.5]}
50... Kf6 {[%clk 0:00:29.6]} 51. Bc4 {[%clk 0:00:34.8]} 51... e5 {[%clk
0:00:29]} 52. h4 {[%clk 0:00:31.3]} 52... h5 {[%clk 0:00:27.2]} 53. gxh5 {[%clk
0:00:27.5]} 53... gxh5 {[%clk 0:00:27.2]} 54. Bb5 {[%clk 0:00:22.4]} 54... Ke7
{[%clk 0:00:20.8]} 55. Bc4 {[%clk 0:00:19.9]} 55... Bc3 {[%clk 0:00:20.3]} 56.
Kf2 {[%clk 0:00:15.9]} 56... e4 {[%clk 0:00:20.5]} 57. dxe4 {[%clk 0:00:15.6]}
57... fxe4 {[%clk 0:00:20.7]} 58. Ke3 {[%clk 0:00:15.9]} 58... Kf6 {[%clk
0:00:18.6]} 59. Be2 {[%clk 0:00:13.6]} 59... Ke5 {[%clk 0:00:15.8]} 60. Bxh5
{[%clk 0:00:13]} 60... Bd4+ {[%clk 0:00:14]} 61. Ke2 {[%clk 0:00:12.7]} 61... c4
{[%clk 0:00:14.4]} 62. Bf7 {[%clk 0:00:13]} 62... c3 {[%clk 0:00:13.8]} 63. Bb3
{[%clk 0:00:13.2]} 63... Kf4 {[%clk 0:00:13.3]} 64. Bc2 {[%clk 0:00:13]} 64...
e3 {[%clk 0:00:11.9]} 65. h5 {[%clk 0:00:12.9]} 65... Kg5 {[%clk 0:00:12.1]} 66.
Bg6 {[%clk 0:00:13.1]} 66... Kh6 {[%clk 0:00:12.7]} 67. Kd3 {[%clk 0:00:13.1]}
67... Kg5 {[%clk 0:00:13.1]} 68. Ke2 {[%clk 0:00:13.4]} 68... Kh6 {[%clk
0:00:09.8]} 69. Kf3 {[%clk 0:00:13.6]} 69... Bg7 {[%clk 0:00:09.1]} 70. Ke2
{[%clk 0:00:13.6]} 70... Kg5 {[%clk 0:00:09.4]} 71. Kxe3 {[%clk 0:00:13.8]}
71... Kf6 {[%clk 0:00:09.2]} 72. Kd3 {[%clk 0:00:14.1]} 72... Kg5 {[%clk
0:00:10.1]} 73. Kc2 {[%clk 0:00:14.8]} 73... Kh6 {[%clk 0:00:11]} 74. Be8 {[%clk
0:00:14.2]} 74... Bf6 {[%clk 0:00:11.9]} 75. Bg6 {[%clk 0:00:15.1]} 75... Bg7
{[%clk 0:00:12.8]} 76. Be8 {[%clk 0:00:15.6]} 76... Bh8 {[%clk 0:00:13.7]} 77.
Bg6 {[%clk 0:00:16.4]} 77... Bg7 {[%clk 0:00:14.6]} 1/2-1/2

[Event "*** Titled Tuesday Blitz"]
[Site "Chess.com"]
[Date "2020.05.12"]
[Round "7"]
[White "fish7728"]
[Black "tonyq11"]
[Result "1-0"]
[WhiteElo "2056"]
[BlackElo "2196"]
[TimeControl "180+1"]
[EndTime "11:18:06 PDT"]
[Termination "fish7728 won on time"]

1. d4 {[%clk 0:02:48.4]} 1... d5 {[%clk 0:02:58.7]} 2. c4 {[%clk 0:02:48]} 2...
e6 {[%clk 0:02:59.4]} 3. Nc3 {[%clk 0:02:47.8]} 3... Nf6 {[%clk 0:03:00]} 4. Bg5
{[%clk 0:02:48.2]} 4... Be7 {[%clk 0:02:59.9]} 5. e3 {[%clk 0:02:48.5]} 5... O-O
{[%clk 0:03:00]} 6. Bd3 {[%clk 0:02:49.1]} 6... h6 {[%clk 0:03:00.3]} 7. h4
{[%clk 0:02:48.5]} 7... dxc4 {[%clk 0:02:28.3]} 8. Bxc4 {[%clk 0:02:46.9]} 8...
Nd5 {[%clk 0:02:11.4]} 9. Bxe7 {[%clk 0:02:44.8]} 9... Nxe7 {[%clk 0:02:05.3]}
10. Nf3 {[%clk 0:02:41.5]} 10... b6 {[%clk 0:01:56.1]} 11. Qe2 {[%clk
0:02:40.6]} 11... Bb7 {[%clk 0:01:55.7]} 12. O-O-O {[%clk 0:02:39.7]} 12... Nd5
{[%clk 0:01:55]} 13. Nxd5 {[%clk 0:02:36.7]} 13... Bxd5 {[%clk 0:01:53.1]} 14.
Bxd5 {[%clk 0:02:36.6]} 14... Qxd5 {[%clk 0:01:52.6]} 15. Kb1 {[%clk 0:02:37.2]}
15... Qe4+ {[%clk 0:01:50.2]} 16. Qc2 {[%clk 0:02:36.1]} 16... Qxc2+ {[%clk
0:01:49.8]} 17. Kxc2 {[%clk 0:02:36]} 17... Nd7 {[%clk 0:01:48.5]} 18. e4 {[%clk
0:02:35.6]} 18... c6 {[%clk 0:01:37]} 19. Rhe1 {[%clk 0:02:34.6]} 19... Rfd8
{[%clk 0:01:36.2]} 20. b4 {[%clk 0:02:33.3]} 20... a5 {[%clk 0:01:33.5]} 21. a3
{[%clk 0:02:32.1]} 21... axb4 {[%clk 0:01:33.4]} 22. axb4 {[%clk 0:02:32]} 22...
Ra2+ {[%clk 0:01:33.4]} 23. Kb3 {[%clk 0:02:31.3]} 23... Rxf2 {[%clk 0:01:33]}
24. Rd2 {[%clk 0:02:30]} 24... Rxd2 {[%clk 0:01:29.7]} 25. Nxd2 {[%clk
0:02:30.9]} 25... Nf6 {[%clk 0:01:12]} 26. Kc4 {[%clk 0:02:25.5]} 26... Nd7
{[%clk 0:00:49.7]} 27. Ra1 {[%clk 0:02:18]} 27... e5 {[%clk 0:00:42.5]} 28. Nf3
{[%clk 0:01:56.1]} 28... exd4 {[%clk 0:00:38.5]} 29. Nxd4 {[%clk 0:01:55.8]}
29... Ne5+ {[%clk 0:00:38.1]} 30. Kc3 {[%clk 0:01:56]} 30... c5 {[%clk
0:00:37.9]} 31. bxc5 {[%clk 0:01:51.1]} 31... bxc5 {[%clk 0:00:38.8]} 32. Nf5
{[%clk 0:01:50.3]} 32... Rd3+ {[%clk 0:00:33.7]} 33. Kc2 {[%clk 0:01:50.1]}
33... Rd8 {[%clk 0:00:27.4]} 34. Ra5 {[%clk 0:01:46.2]} 34... Nd3 {[%clk
0:00:24]} 35. Ne7+ {[%clk 0:01:31.9]} 35... Kf8 {[%clk 0:00:23.7]} 36. Nc6
{[%clk 0:01:29.6]} 36... Nb4+ {[%clk 0:00:18.8]} 37. Nxb4 {[%clk 0:01:28.1]}
37... cxb4 {[%clk 0:00:19.7]} 38. Rb5 {[%clk 0:01:26.4]} 38... Rd4 {[%clk
0:00:19.9]} 39. g3 {[%clk 0:01:18.2]} 39... Rxe4 {[%clk 0:00:20]} 40. Kd3 {[%clk
0:01:14.3]} 40... Rg4 {[%clk 0:00:19.4]} 41. Ke2 {[%clk 0:01:14]} 41... Rxg3
{[%clk 0:00:14.4]} 42. Rxb4 {[%clk 0:01:13]} 42... g6 {[%clk 0:00:14.5]} 43. Kf2
{[%clk 0:01:12.3]} 43... Rh3 {[%clk 0:00:13.4]} 44. Kg2 {[%clk 0:01:11.6]} 44...
Ra3 {[%clk 0:00:13.1]} 45. Re4 {[%clk 0:01:09.2]} 45... Kg7 {[%clk 0:00:13.3]}
46. Rf4 {[%clk 0:01:07.7]} 46... h5 {[%clk 0:00:12.3]} 47. Kh2 {[%clk
0:01:04.5]} 47... f6 {[%clk 0:00:11.4]} 48. Rc4 {[%clk 0:01:02]} 48... Ra6
{[%clk 0:00:10.1]} 49. Kg3 {[%clk 0:01:00.9]} 49... g5 {[%clk 0:00:09.9]} 50.
Rc7+ {[%clk 0:00:56.7]} 50... Kg6 {[%clk 0:00:09.9]} 51. Rc8 {[%clk 0:00:57.2]}
51... Ra3+ {[%clk 0:00:08.6]} 52. Kg2 {[%clk 0:00:56.7]} 52... g4 {[%clk
0:00:08.4]} 53. Rg8+ {[%clk 0:00:53.7]} 53... Kf7 {[%clk 0:00:08.2]} 54. Rh8
{[%clk 0:00:50.6]} 54... Ra5 {[%clk 0:00:07.8]} 55. Rh7+ {[%clk 0:00:45.6]}
55... Kg6 {[%clk 0:00:07.8]} 56. Rh8 {[%clk 0:00:45.1]} 56... f5 {[%clk
0:00:07.5]} 57. Kg3 {[%clk 0:00:44]} 57... Ra3+ {[%clk 0:00:06.8]} 58. Kf4
{[%clk 0:00:43.3]} 58... Rf3+ {[%clk 0:00:06.5]} 59. Ke5 {[%clk 0:00:42.2]}
59... Re3+ {[%clk 0:00:07]} 60. Kf4 {[%clk 0:00:41.7]} 60... Re4+ {[%clk
0:00:07.6]} 61. Kg3 {[%clk 0:00:41.8]} 61... f4+ {[%clk 0:00:07.8]} 62. Kg2
{[%clk 0:00:42]} 62... f3+ {[%clk 0:00:08]} 63. Kg3 {[%clk 0:00:42]} 63... Re2
{[%clk 0:00:07.5]} 64. Rf8 {[%clk 0:00:38.6]} 64... Rg2+ {[%clk 0:00:06.5]} 65.
Kf4 {[%clk 0:00:37.2]} 65... f2 {[%clk 0:00:06.4]} 66. Ke3 {[%clk 0:00:37.1]}
66... Rh2 {[%clk 0:00:05.7]} 67. Rxf2 {[%clk 0:00:32.4]} 67... Rxh4 {[%clk
0:00:04.5]} 68. Kf4 {[%clk 0:00:28.8]} 68... Rh3 {[%clk 0:00:04.3]} 69. Rf1
{[%clk 0:00:25.1]} 69... Rb3 {[%clk 0:00:03.8]} 70. Rf2 {[%clk 0:00:23.7]} 70...
Rb4+ {[%clk 0:00:04.1]} 71. Kg3 {[%clk 0:00:23.6]} 71... Kg5 {[%clk 0:00:03.9]}
72. Rd2 {[%clk 0:00:23]} 72... h4+ {[%clk 0:00:04.3]} 73. Kg2 {[%clk 0:00:23.5]}
73... h3+ {[%clk 0:00:04.4]} 74. Kh2 {[%clk 0:00:22.7]} 74... Rb3 {[%clk
0:00:04.3]} 75. Rd8 {[%clk 0:00:22]} 1-0

[Event "*** Titled Tuesday Blitz"]
[Site "Chess.com"]
[Date "2020.05.12"]
[Round "7"]
[White "DanielDardha2005"]
[Black "AlexTriapishko"]
[Result "1-0"]
[WhiteElo "2653"]
[BlackElo "2761"]
[TimeControl "180+1"]
[EndTime "11:18:19 PDT"]
[Termination "DanielDardha2005 won on time"]

1. e4 {[%clk 0:02:34.7]} 1... e5 {[%clk 0:02:47.9]} 2. Bc4 {[%clk 0:02:33.6]}
2... Nc6 {[%clk 0:02:47.5]} 3. Nf3 {[%clk 0:02:33.5]} 3... Nf6 {[%clk
0:02:46.9]} 4. d3 {[%clk 0:02:32.9]} 4... Bc5 {[%clk 0:02:47]} 5. c3 {[%clk
0:02:32.9]} 5... d6 {[%clk 0:02:47.2]} 6. Bb3 {[%clk 0:02:33.1]} 6... a6 {[%clk
0:02:47.3]} 7. h3 {[%clk 0:02:32.3]} 7... O-O {[%clk 0:02:46.6]} 8. Nbd2 {[%clk
0:02:32.3]} 8... Be6 {[%clk 0:02:44.1]} 9. Bc2 {[%clk 0:02:32.6]} 9... d5 {[%clk
0:02:40.3]} 10. Qe2 {[%clk 0:02:31.5]} 10... dxe4 {[%clk 0:02:40.5]} 11. dxe4
{[%clk 0:02:32.4]} 11... b5 {[%clk 0:02:40.1]} 12. Ng5 {[%clk 0:02:26.5]} 12...
Bc8 {[%clk 0:02:26.6]} 13. O-O {[%clk 0:02:14.2]} 13... h6 {[%clk 0:02:23.5]}
14. Ngf3 {[%clk 0:02:14.1]} 14... Be6 {[%clk 0:02:24]} 15. b4 {[%clk 0:01:57.9]}
15... Ba7 {[%clk 0:02:04.9]} 16. a4 {[%clk 0:01:57.7]} 16... Nh5 {[%clk
0:02:04.2]} 17. Rd1 {[%clk 0:01:39.5]} 17... Nf4 {[%clk 0:01:28.1]} 18. Qf1
{[%clk 0:01:37.6]} 18... Qf6 {[%clk 0:00:49.4]} 19. Kh2 {[%clk 0:01:01]} 19...
Qg6 {[%clk 0:00:40.4]} 20. Bb3 {[%clk 0:00:53.8]} 20... Bxb3 {[%clk 0:00:32.8]}
21. Nxb3 {[%clk 0:00:54.7]} 21... Qxe4 {[%clk 0:00:30.8]} 22. axb5 {[%clk
0:00:47.4]} 22... axb5 {[%clk 0:00:31.7]} 23. Qxb5 {[%clk 0:00:46.1]} 23... Bxf2
{[%clk 0:00:25.5]} 24. Rxa8 {[%clk 0:00:44]} 24... Rxa8 {[%clk 0:00:26.4]} 25.
Bxf4 {[%clk 0:00:38.2]} 25... exf4 {[%clk 0:00:19.8]} 26. Nc5 {[%clk 0:00:29.1]}
26... Bxc5 {[%clk 0:00:12.2]} 27. Qxc5 {[%clk 0:00:26.8]} 27... Ra2 {[%clk
0:00:11.1]} 28. Rd2 {[%clk 0:00:13]} 28... Rxd2 {[%clk 0:00:08.6]} 29. Nxd2
{[%clk 0:00:13.9]} 29... Qe6 {[%clk 0:00:06.4]} 30. b5 {[%clk 0:00:14.1]} 30...
Ne5 {[%clk 0:00:04.5]} 31. Qxc7 {[%clk 0:00:14.2]} 31... Qd5 {[%clk 0:00:02.7]}
32. Qc8+ {[%clk 0:00:08.7]} 32... Kh7 {[%clk 0:00:01.5]} 33. Qf5+ {[%clk
0:00:05.9]} 33... g6 {[%clk 0:00:01.6]} 34. Qf6 {[%clk 0:00:04]} 34... Qxd2
{[%clk 0:00:01.6]} 35. Qxe5 {[%clk 0:00:03.9]} 35... f3 {[%clk 0:00:02.5]} 36.
Qg3 {[%clk 0:00:02.6]} 36... fxg2 {[%clk 0:00:02.9]} 37. Qxg2 {[%clk 0:00:03.5]}
37... Qxc3 {[%clk 0:00:03.1]} 38. Qc6 {[%clk 0:00:03]} 38... Qd2+ {[%clk
0:00:02.3]} 39. Kg3 {[%clk 0:00:03.2]} 39... Qe3+ {[%clk 0:00:02.6]} 40. Kg2
{[%clk 0:00:03.3]} 40... Qe2+ {[%clk 0:00:02.6]} 41. Kg1 {[%clk 0:00:03.9]}
41... Qe3+ {[%clk 0:00:02.7]} 42. Kf1 {[%clk 0:00:03.6]} 42... Qd3+ {[%clk
0:00:02.5]} 43. Ke1 {[%clk 0:00:03.8]} 43... Qe3+ {[%clk 0:00:02.6]} 44. Kd1
{[%clk 0:00:04.1]} 44... Qd3+ {[%clk 0:00:03.4]} 45. Kc1 {[%clk 0:00:04.5]}
45... Qa3+ {[%clk 0:00:03.6]} 46. Kc2 {[%clk 0:00:04]} 46... Qa2+ {[%clk
0:00:03.8]} 47. Kc3 {[%clk 0:00:04.5]} 47... Qa3+ {[%clk 0:00:04.1]} 48. Kd4
{[%clk 0:00:04.9]} 48... Qb2+ {[%clk 0:00:03.6]} 49. Kd5 {[%clk 0:00:05]} 49...
Kg7 {[%clk 0:00:02.9]} 50. b6 {[%clk 0:00:02.9]} 50... Qg2+ {[%clk 0:00:03.2]}
51. Kd6 {[%clk 0:00:03.1]} 51... Qg3+ {[%clk 0:00:02.7]} 52. Kd7 {[%clk
0:00:03.5]} 52... Qxh3+ {[%clk 0:00:03]} 53. Kc7 {[%clk 0:00:04]} 53... Qg3+
{[%clk 0:00:03.3]} 54. Qd6 {[%clk 0:00:03.6]} 54... Qc3+ {[%clk 0:00:02.8]} 55.
Kd7 {[%clk 0:00:03.6]} 55... Qh3+ {[%clk 0:00:02.2]} 56. Kd8 {[%clk 0:00:03.3]}
56... Qh4+ {[%clk 0:00:02.5]} 57. Kc8 {[%clk 0:00:02.5]} 57... Qc4+ {[%clk
0:00:02.7]} 58. Qc7 {[%clk 0:00:02.5]} 58... Qg4+ {[%clk 0:00:02]} 59. Kb8
{[%clk 0:00:03.1]} 59... Qb4 {[%clk 0:00:01.7]} 60. b7 {[%clk 0:00:04]} 60... g5
{[%clk 0:00:01.6]} 61. Ka8 {[%clk 0:00:03.6]} 61... Qa4+ {[%clk 0:00:01.1]} 62.
Kb8 {[%clk 0:00:04.5]} 1-0